{"text_format":"3","workbook":"xlsx","n_sheets":4,"sheets":["入札用紙","グラフ データ","コスト明細","入札コストの概要"],"not_rendered":{"charts":1,"images":2,"defined_names":11},"read":"whole","date_system":"1900"}

{"sheet":"入札用紙","index":0,"n_rows":21,"n_cols":6,"rows_kept":21,"merged":[[0,1,0,4],[1,1,1,2],[7,1,8,1],[7,2,8,2],[10,1,10,5],[12,1,12,5],[14,1,14,5],[15,1,15,2],[15,4,15,5],[16,1,16,2],[16,4,16,5],[18,1,18,5],[19,1,19,2],[19,4,19,5],[20,1,20,2],[20,4,20,5]]}
[null,"建設入札用紙"]
[null,"所有者情報",null,null,"請負業者情報"]
[null,"名前","このセルに所有者名を入力します",null,"会社","このセルに請負業者の社名を入力します"]
[null,"住所","このセルに所有者の住所を入力します",null,"名前","このセルに請負業者の名前を入力します"]
[null,"郵便番号、都道府県、市区町村","このセルに所有者の郵便番号、都道府県、市区町村を入力します",null,"住所","このセルに請負業者の住所を入力します"]
[null,"電話","このセルに所有者の電話番号を入力します",null,"郵便番号、都道府県、市区町村","このセルに請負業者の郵便番号、都道府県、市区町村を入力します"]
[null,"メール","このセルに所有者のメール アドレスを入力します",null,"電話","このセルに請負業者の電話番号を入力します"]
[null,"プロジェクト名","このセルにプロジェクト名を入力します",null,"メール","このセルに請負業者のメール アドレスを入力します "]
[{"$nulls":4},"完了日","このセルに完了日を入力します"]
[null,"仕事の範囲"]
[null,"計画している仕事の範囲をここに挿入します。知らせたい詳細があれば、すべてここに入力します。\n\nサンプル テキスト:これは大きな階段を建設する模擬プロジェクトになります。2x4 と 2x8 の木材と梁のブラケットのみを使用し、フレームを造ります。階段は 2x4 の木材から切り出します。2 インチのねじを使用します。釘はすべて 3 ペニー以上です。設計上の重量計算では、階段あたり少なくとも 500 ポンドに耐えます。階段は家と同じ高さになります。踏み板は家に固定されます。請負業者は掃除を引き受けます。"]
[null,"対象外"]
[null,"プロジェクトに含まれない詳細はここに挿入します。この入札に含まれないものがあれば、すべてここに入力します。\n\nサンプル テキスト:レールは取り付けません。地面の準備措置は所有者が行います。階段の塗装は所有者が行います。"]
[null,"会社からの提案"]
[null,"会社からの提案はここに挿入します。提案の概要を入力します。仕事を提案している会社、予想される完了日、提案額などです。\n\nサンプル テキスト:<会社名> は上記の作業範囲を <合計金額> で <完了日> までに完成させることを提案します。"]
[]
[null,"提出者: (会社の代表)",null,null,"日付"]
[null,"所有者の承認"]
[null,"所有者の承認をここに挿入します。確認の声明に所有者の名前を入力します。会社からの提案で指定されている完了日と合計金額を含めます。\n\nサンプル テキスト:<所有者の名前> は上記の作業範囲を <合計金額> で <完了日> までに完成させるという提案を受け入れます。"]
[]
[null,"提出者: (家の所有者または認定代理人)",null,null,"日付"]

{"sheet":"グラフ データ","index":1,"n_rows":7,"n_cols":3,"rows_kept":7,"hidden":true}
[]
[null,null,"合計"]
[null,{"$f":"INDEX(入札項目[#Data],MATCH(1,入札項目[コストのランク付け],0),2)","v":"人件費"},{"$f":"INDEX(入札項目[#Data],MATCH(1,入札項目[コストのランク付け],0),4)","v":200}]
[null,{"$f":"INDEX(入札項目[#Data],MATCH(2,入札項目[コストのランク付け],0),2)","v":"2x4x10 の木材"},{"$f":"INDEX(入札項目[#Data],MATCH(2,入札項目[コストのランク付け],0),4)","v":99.39999999999999}]
[null,{"$f":"INDEX(入札項目[#Data],MATCH(3,入札項目[コストのランク付け],0),2)","v":"梁のブラケット"},{"$f":"INDEX(入札項目[#Data],MATCH(3,入札項目[コストのランク付け],0),4)","v":74.7}]
[null,{"$f":"INDEX(入札項目[#Data],MATCH(4,入札項目[コストのランク付け],0),2)","v":"2x8x10 の木材"},{"$f":"INDEX(入札項目[#Data],MATCH(4,入札項目[コストのランク付け],0),4)","v":33.75}]
[null,{"$f":"INDEX(入札項目[#Data],MATCH(5,入札項目[コストのランク付け],0),2)","v":"革手袋"},{"$f":"INDEX(入札項目[#Data],MATCH(5,入札項目[コストのランク付け],0),4)","v":15.5}]

{"sheet":"コスト明細","index":2,"n_rows":14,"n_cols":6,"rows_kept":14,"merged":[[0,1,0,4],[1,1,1,4]]}
[null,"コスト明細",{"$nulls":3}," "]
[null,"資材とコストの一覧"]
[null,"数量","説明","コスト","集計","コストのランク付け"]
[null,5,"2x8x10 の木材",{"v":6.75,"d":"¥6.75"},{"$f":"IFERROR(入札項目[[#This Row],[コスト]]*入札項目[[#This Row],[数量]], \"\")","v":{"v":33.75,"d":"¥33.75"}},{"$f":"_xlfn.RANK.EQ(入札項目[[#This Row],[集計]],入札項目[集計])","v":4}]
[null,20,"2x4x10 の木材",{"v":4.97,"d":"¥4.97"},{"$f":"IFERROR(入札項目[[#This Row],[コスト]]*入札項目[[#This Row],[数量]], \"\")","v":{"v":99.39999999999999,"d":"¥99.40"}},{"$f":"_xlfn.RANK.EQ(入札項目[[#This Row],[集計]],入札項目[集計])","v":2}]
[null,30,"梁のブラケット",{"v":2.49,"d":"¥2.49"},{"$f":"IFERROR(入札項目[[#This Row],[コスト]]*入札項目[[#This Row],[数量]], \"\")","v":{"v":74.7,"d":"¥74.70"}},{"$f":"_xlfn.RANK.EQ(入札項目[[#This Row],[集計]],入札項目[集計])","v":3}]
[null,2,"2 インチねじの箱",{"v":6.67,"d":"¥6.67"},{"$f":"IFERROR(入札項目[[#This Row],[コスト]]*入札項目[[#This Row],[数量]], \"\")","v":{"v":13.34,"d":"¥13.34"}},{"$f":"_xlfn.RANK.EQ(入札項目[[#This Row],[集計]],入札項目[集計])","v":6}]
[null,2,"10 ペニー釘の箱",{"v":3.25,"d":"¥3.25"},{"$f":"IFERROR(入札項目[[#This Row],[コスト]]*入札項目[[#This Row],[数量]], \"\")","v":{"v":6.5,"d":"¥6.50"}},{"$f":"_xlfn.RANK.EQ(入札項目[[#This Row],[集計]],入札項目[集計])","v":7}]
[null,2,"革手袋",{"v":7.75,"d":"¥7.75"},{"$f":"IFERROR(入札項目[[#This Row],[コスト]]*入札項目[[#This Row],[数量]], \"\")","v":{"v":15.5,"d":"¥15.50"}},{"$f":"_xlfn.RANK.EQ(入札項目[[#This Row],[集計]],入札項目[集計])","v":5}]
[null,2,"人件費",{"v":100,"d":"¥100.00"},{"$f":"IFERROR(入札項目[[#This Row],[コスト]]*入札項目[[#This Row],[数量]], \"\")","v":{"v":200,"d":"¥200.00"}},{"$f":"_xlfn.RANK.EQ(入札項目[[#This Row],[集計]],入札項目[集計])","v":1}]
[4,null,null,"小計",{"$f":"SUBTOTAL(109,入札項目[集計])","v":{"v":443.18999999999994,"d":"¥443.19"}}]
[5,null,null,"税率",{"v":0.075,"d":"7.50%"}]
[{"$nulls":3},"税",{"$f":"IFERROR(税率*入札項目[[#Totals],[集計]], \"\")","v":{"v":33.23924999999999,"d":"¥33.24"}}]
[{"$nulls":3},"総計",{"$f":"IFERROR(税+入札項目[[#Totals],[集計]], \"\")","v":{"v":476.4292499999999,"d":"¥476.43"}}]

{"sheet":"入札コストの概要","index":3,"n_rows":3,"n_cols":4,"rows_kept":3}
[null,"入札コストの概要"]
[null,"資材とコストの明細",null,"メモ"]
[null,"資材別コスト上位 5 を示す円グラフデータはコスト明細ワークシートの入力項目テーブルに基づきます",null,"このセルにメモを入力します。"]